bitfinex/quotes_BTCUSD_20210402
["timestamp","ask_amount","ask_price","bid_price","bid_amount"]
[1617325454957,1.95697004,58720.0,58707.0,0.15623425]
[1617325454958,1.94,58719.0,58707.0,0.15623425]
[1617325455160,1.94,58719.0,58713.0,0.05862597]
[1617325455161,0.439597,58715.0,58713.0,0.05862597]
[1617325455357,2.54488789,58714.0,58708.0,0.0586498]
[1617325455560,2.54488789,58714.0,58695.0,0.15643752]
[1617325455561,2.195583,58709.0,58695.0,0.15643752]
[1617325455758,3.15126931,58708.0,58690.0,0.15656714]
[1617325455957,0.56676,58696.0,58690.0,0.15656714]
[1617325456159,0.66265204,58695.0,58690.0,0.15656714]
[1617325456354,0.21,58694.0,58689.0,0.15660504]
[1617325456555,0.645194,58693.0,58688.0,0.15664025]
[1617325456958,0.3,58692.0,58688.0,0.15664025]
[1617325457171,0.365,58691.0,58688.0,0.15664025]
[1617325457773,2.094,58689.0,58688.0,0.15664025]
[1617325457974,2.483597,58689.0,58687.0,0.15668414]
[1617325458172,2.809597,58688.0,58687.0,0.15668414]
[1617325458378,0.48,58688.0,58686.0,0.15672303]
[1617325458573,0.25559,58690.0,58686.0,0.15672303]
[1617325460010,2.1,58687.0,58686.0,0.15672303]
[1617325460209,2.489597,58687.0,58686.0,0.15672303]
[1617325460407,2.47,58687.0,58686.0,0.15672303]
[1617325460607,2.31,58687.0,58685.0,0.15667667]
[1617325461006,2.28,58687.0,58686.0,0.15666385]
[1617325461207,2.28,58687.0,58683.0,0.03902407]
[1617325461405,0.365,58686.0,58683.0,0.03902407]
[1617325461809,0.389597,58685.0,58682.0,0.03901832]
[1617325462432,1.565,58683.0,58682.0,0.03901832]
[1617325462631,1.954597,58683.0,58682.0,0.03901832]
[1617325463031,2.365229,58683.0,58682.0,0.03901832]
[1617325463231,2.365229,58683.0,58681.0,0.039003]
[1617325463432,2.139597,58682.0,58681.0,0.039003]
[1617325463632,2.704597,58682.0,58681.0,0.039003]
[1617325463831,2.704597,58682.0,58680.0,0.03902689]
[1617325464033,1.695,58681.0,58680.0,0.03902689]
[1617325464231,0.964597,58681.0,58680.0,0.03902689]
[1617325464432,0.964597,58681.0,58680.0,0.012]
[1617325464433,0.389597,58681.0,58680.0,0.012]
[1617325464833,0.614597,58681.0,58680.0,0.012]
[1617325465057,0.614597,58681.0,58679.0,0.03903564]
[1617325465260,1.841597,58680.0,58679.0,0.03903564]
[1617325465560,1.841597,58680.0,58678.0,0.03903611]
[1617325465561,2.256597,58680.0,58678.0,0.03903611]
[1617325465755,0.445,58679.0,58678.0,0.03903611]
[1617325465955,0.389597,58679.0,58678.0,0.03903611]
[1617325466165,0.68603,58684.0,58667.0,0.00303724]
[1617325466359,0.68603,58684.0,58678.0,0.03904126]
[1617325466561,0.389597,58683.0,58679.0,0.03903533]
[1617325466756,0.425641,58682.0,58679.0,0.03903533]
[1617325466957,1.415,58680.0,58679.0,0.03903533]
[1617325467158,1.804597,58680.0,58678.0,0.03903445]
[1617325467359,1.499597,58679.0,58678.0,0.03903445]
[1617325467600,1.879597,58679.0,58667.0,0.004]
[1617325467804,1.49,58679.0,58667.0,0.004]
[1617325468003,1.49,58679.0,58666.0,0.44503006]
[1617325468004,1.49,58679.0,58678.0,0.03903713]
[1617325468204,2.13525,58679.0,58678.0,0.03903713]
[1617325468403,2.13525,58679.0,58675.0,0.03904826]
[1617325468602,0.734597,58678.0,58675.0,0.03904826]
[1617325468803,2.105,58676.0,58675.0,0.03904826]
[1617325469002,2.494597,58676.0,58675.0,0.03904826]
[1617325469404,2.954597,58676.0,58675.0,0.03904826]
[1617325469610,3.500263,58676.0,58674.0,0.03907091]
[1617325469805,2.859597,58675.0,58674.0,0.03907091]
[1617325470011,3.021597,58675.0,58671.0,0.03908773]
[1617325470410,3.021597,58675.0,58672.0,0.03908052]
[1617325470610,0.49,58674.0,58670.0,0.03909442]
[1617325470814,0.49,58674.0,58668.0,0.03911728]
[1617325470815,0.389597,58673.0,58668.0,0.03911728]
[1617325471213,0.63,58671.0,58666.0,0.03912593]
[1617325471412,0.852557,58670.0,58666.0,0.03912593]
[1617325471811,1.838,58667.0,58666.0,0.03912593]
[1617325472013,1.838,58667.0,58664.0,0.0401479]
[1617325472014,2.227597,58667.0,58665.0,0.03913886]
[1617325472209,2.319597,58666.0,58665.0,0.03913886]
[1617325472415,2.319597,58666.0,58664.0,0.0401479]
[1617325472616,2.435,58665.0,58664.0,0.0430768]
[1617325473033,2.824597,58665.0,58664.0,0.0401479]
[1617325473633,2.824597,58665.0,58664.0,0.04307481]
[1617325474030,0.964597,58665.0,58664.0,0.04307481]
[1617325474231,0.157,58667.0,58664.0,0.04307481]
[1617325474432,0.157,58667.0,58666.0,0.00195152]
[1617325475234,2.476597,58667.0,58666.0,0.00195152]
[1617325475660,2.881597,58667.0,58665.0,0.00195123]
[1617325475860,2.319597,58666.0,58665.0,0.00195123]
[1617325476061,2.319597,58666.0,58664.0,0.04307259]
[1617325476259,2.319597,58666.0,58665.0,0.013]
[1617325476461,2.789597,58666.0,58665.0,0.01592386]
[1617325476663,0.859597,58666.0,58665.0,0.01494944]
[1617325476861,0.255712,58668.0,58665.0,0.013]
[1617325477061,0.255712,58668.0,58666.0,0.00194908]
[1617325477462,0.255712,58668.0,58667.0,0.014]
[1617325477662,0.645309,58668.0,58667.0,0.0159489]
[1617325477863,0.645309,58668.0,58667.0,0.014]
[1617325478280,1.475309,58668.0,58667.0,0.014]
[1617325478479,1.695309,58668.0,58667.0,0.014]
[1617325479083,0.865309,58668.0,58667.0,0.014]
[1617325479284,0.865309,58668.0,58667.0,0.01594889]
[1617325479285,0.255712,58668.0,58667.0,0.01594889]
[1617325479483,0.255712,58668.0,58667.0,0.00194889]
[1617325479683,0.255712,58668.0,58667.0,0.08294889]
[1617325479884,0.255712,58668.0,58666.0,0.00292319]
[1617325480092,0.9213,58681.0,58667.0,1.7521]
[1617325480289,0.9213,58681.0,58674.0,0.0390762]
[1617325480581,0.389597,58679.0,58674.0,0.0390762]
[1617325480720,0.674597,58679.0,58675.0,0.16706851]
[1617325480919,0.674597,58679.0,58676.0,0.13488229]
[1617325481117,0.674597,58679.0,58677.0,0.129]
[1617325481319,0.674597,58679.0,58677.0,0.249]
[1617325481517,1.09,58678.0,58677.0,0.249]
[1617325481725,1.479597,58678.0,58677.0,0.249]
[1617325481920,0.709597,58678.0,58677.0,0.249]
[1617325484351,0.709597,58678.0,58668.0,0.16286328]
[1617325484552,0.23419493,58677.0,58668.0,0.16286328]
[1617325484752,0.23419493,58677.0,58669.0,0.129]
[1617325485352,0.23419493,58677.0,58666.0,0.129]
[1617325485550,0.23419493,58677.0,58666.0,0.254]
[1617325485755,0.17,58676.0,58666.0,0.254]
[1617325485963,0.389597,58675.0,58666.0,0.134]
[1617325486164,0.589597,58675.0,58666.0,0.134]
[1617325486363,0.28,58674.0,58666.0,0.134]
[1617325486563,0.389597,58673.0,58666.0,0.134]
[1617325486762,0.154,58676.0,58666.0,0.134]
[1617325486961,0.389597,58675.0,58666.0,0.254]
[1617325487166,0.564597,58674.0,58667.0,0.9921]
[1617325487375,0.3,58704.0,58671.0,0.389597]
[1617325487573,0.31329097,58707.0,58700.0,0.59503534]
[1617325487574,0.4845,58707.0,58700.0,0.59503534]
[1617325487771,0.10355514,58713.0,58705.0,1.32292649]
[1617325487772,0.389597,58706.0,58705.0,1.32292649]
[1617325487971,0.9648,58719.0,58705.0,1.32]
[1617325487972,0.9044,58717.0,58705.0,1.32]
[1617325488168,0.9044,58717.0,58712.0,0.41189729]
[1617325488372,0.389597,58713.0,58712.0,0.41384614]
[1617325488585,0.9648,58719.0,58712.0,0.41189729]
[1617325488782,0.275,58718.0,58715.0,0.00194753]
[1617325488986,0.389597,58717.0,58716.0,0.00194706]
[1617325489184,0.389597,58717.0,58716.0,0.71291869]
[1617325489381,0.389597,58717.0,58716.0,0.00291869]
[1617325489582,0.74658304,58720.0,58715.0,0.01945236]
[1617325489781,0.74158304,58720.0,58716.0,0.01945006]
[1617325489982,0.74158304,58720.0,58719.0,0.00194438]
[1617325490184,0.74158304,58720.0,58718.0,0.00291657]
[1617325490885,0.389597,58719.0,58718.0,0.00291657]
[1617325491313,0.389597,58719.0,58712.0,0.35560929]
[1617325491513,0.74158304,58720.0,58712.0,0.65510929]
[1617325491712,0.74158304,58720.0,58713.0,0.441]
[1617325492111,0.74158304,58720.0,58715.0,0.255445]
[1617325492311,0.74158304,58720.0,58716.0,0.44]
[1617325494138,0.74158304,58720.0,58715.0,0.259445]
[1617325494739,0.74158304,58720.0,58716.0,0.441]
[1617325494936,0.74158304,58720.0,58715.0,0.259445]
[1617325495840,0.0004,58725.0,58716.0,4.02900624]
[1617325497254,0.0004,58725.0,58717.0,0.225]
[1617325497455,0.0004,58725.0,58718.0,2.04800406]
[1617325497653,0.0004,58725.0,58718.0,2.05220406]
[1617325498053,0.0004,58725.0,58721.0,0.10504381]
[1617325499055,0.0004,58725.0,58718.0,2.05220406]
[1617325499484,0.0004,58725.0,58719.0,0.255433]
[1617325499682,0.0004,58725.0,58720.0,2.0114865]
[1617325500082,0.0004,58725.0,58721.0,0.405]
[1617325500880,0.0004,58725.0,58720.0,2.0114865]
[1617325501686,0.0004,58725.0,58720.0,2.06254904]
[1617325501909,0.0004,58725.0,58720.0,2.0114865]
[1617325502311,0.8484,58731.0,58720.0,2.0114865]
[1617325502710,0.41,58730.0,58720.0,2.0114865]
[1617325502908,0.59396701,58724.0,58720.0,2.0114865]
[1617325506333,0.59396701,58724.0,58721.0,0.1555561]
[1617325508163,0.2748111,58723.0,58720.0,2.0114865]
[1617325508466,1.65,58721.0,58720.0,2.0114865]
[1617325508665,2.039597,58721.0,58710.0,0.345591]
[1617325508861,0.769597,58720.0,58710.0,0.345591]
[1617325509066,0.389597,58720.0,58710.0,0.45539467]
[1617325509265,0.59396701,58724.0,58710.0,0.45539467]
[1617325509465,0.59396701,58724.0,58713.0,0.005]
[1617325509692,0.389597,58723.0,58719.0,0.16623532]
[1617325509888,0.145,58722.0,58719.0,0.16623532]
[1617325510087,0.389597,58721.0,58719.0,0.16623532]
[1617325510487,0.389597,58721.0,58719.0,0.21808093]
[1617325510771,0.389597,58721.0,58720.0,0.255442]
[1617325511167,0.554597,58721.0,58720.0,0.267442]
[1617325511369,0.554597,58721.0,58720.0,0.307442]
[1617325511573,0.554597,58721.0,58720.0,0.3161314]
[1617325511971,0.554597,58721.0,58720.0,0.2641314]
[1617325512410,0.554597,58721.0,58720.0,0.3151314]
[1617325513614,0.554597,58721.0,58720.0,0.3551314]
[1617325514015,0.554597,58721.0,58720.0,0.2641314]
[1617325514814,0.554597,58721.0,58720.0,0.3141314]
[1617325515237,0.554597,58721.0,58720.0,0.0086894]
[1617325516038,0.554597,58721.0,58720.0,0.0596894]
[1617325516437,0.554597,58721.0,58720.0,0.0996894]
[1617325516846,1.654597,58721.0,58720.0,0.19379552]
[1617325517040,0.554597,58721.0,58720.0,0.19379552]
[1617325517661,0.554597,58721.0,58720.0,0.35653833]
[1617325518064,0.554597,58721.0,58720.0,0.26553833]
[1617325518464,0.554597,58721.0,58720.0,0.31653833]
[1617325519265,0.554597,58721.0,58720.0,0.35653833]
[1617325519467,0.554597,58721.0,58720.0,0.44924452]
[1617325519665,0.554597,58721.0,58720.0,0.96924452]
[1617325519866,0.165,58721.0,58720.0,0.96924452]
[1617325520289,0.59396701,58724.0,58720.0,0.71379552]
[1617325520490,0.59396701,58724.0,58721.0,0.09403889]
[1617325520888,0.59396701,58724.0,58722.0,0.051]
[1617325521089,0.59396701,58724.0,58723.0,0.09402685]
[1617325521689,0.59396701,58724.0,58723.0,0.51402685]
[1617325521890,0.59396701,58724.0,58723.0,0.09402685]
[1617325522094,0.59396701,58724.0,58723.0,0.13402685]
[1617325522690,0.59396701,58724.0,58723.0,0.09402685]
[1617325523312,0.98356401,58724.0,58723.0,0.09402685]
[1617325523514,1.12856401,58724.0,58723.0,0.13402685]
[1617325523914,1.12856401,58724.0,58723.0,0.18402685]
[1617325524913,1.12856401,58724.0,58723.0,0.25862685]
[1617325525811,1.12856401,58724.0,58723.0,0.3089813]
[1617325526012,1.12856401,58724.0,58723.0,0.3176707]
[1617325526207,1.12856401,58724.0,58723.0,0.2676707]
[1617325526408,1.12856401,58724.0,58723.0,0.2276707]
[1617325526610,1.12856401,58724.0,58723.0,0.9076707]
[1617325526817,0.73896701,58724.0,58723.0,0.9076707]
[1617325527612,0.73896701,58724.0,58723.0,1.45731625]
[1617325528013,0.73896701,58724.0,58723.0,1.61744882]
[1617325528218,0.73896701,58724.0,58723.0,1.67544882]
[1617325528416,0.59396701,58724.0,58723.0,2.10504582]
[1617325528613,0.59396701,58724.0,58723.0,2.76504582]
[1617325529417,0.59396701,58724.0,58723.0,3.34504582]
[1617325529614,0.59396701,58724.0,58723.0,2.58704582]
[1617325530020,0.59396701,58724.0,58723.0,2.51244582]
[1617325530614,0.59396701,58724.0,58723.0,3.07944582]
[1617325531012,0.59396701,58724.0,58723.0,2.52944582]
[1617325531415,0.59396701,58724.0,58723.0,1.94944582]
[1617325531616,0.59396701,58724.0,58723.0,2.55944582]
[1617325532017,0.59396701,58724.0,58723.0,2.01944582]
[1617325532823,0.86877811,58724.0,58723.0,0.26284882]
[1617325533026,0.86877811,58724.0,58723.0,0.10271625]
[1617325533027,1.56371811,58724.0,58723.0,0.10271625]
[1617325533223,2.23331511,58724.0,58723.0,0.10271625]
[1617325533618,4.17331511,58724.0,58723.0,0.10271625]
[1617325534022,4.22331511,58724.0,58723.0,0.10271625]
[1617325534220,4.17331511,58724.0,58723.0,0.10271625]
[1617325536642,2.23331511,58724.0,58723.0,0.10271625]
[1617325536846,1.70350401,58724.0,58723.0,0.0106305]
[1617325537246,1.70350401,58724.0,58723.0,0.17669716]
[1617325537444,2.43350401,58724.0,58723.0,0.17669716]
[1617325538044,2.53350401,58724.0,58723.0,0.17669716]
[1617325538874,2.69150401,58724.0,58723.0,0.0086894]
[1617325539275,2.69150401,58724.0,58723.0,0.02808746]
[1617325539472,3.90150401,58724.0,58723.0,0.12134243]
[1617325539671,3.90150401,58724.0,58723.0,0.0086894]
[1617325540071,3.90150401,58724.0,58722.0,0.00291137]
[1617325540274,3.4924081,58723.0,58722.0,0.00291137]
[1617325540474,0.255492,58722.0,58721.0,0.00291206]
[1617325540764,2.685089,58722.0,58721.0,0.00291206]
[1617325541191,3.560089,58722.0,58721.0,0.00291206]
[1617325542792,3.714089,58722.0,58721.0,0.00291206]
[1617325542999,3.714089,58722.0,58721.0,0.0086894]
[1617325543200,3.759089,58722.0,58719.0,0.00291441]
[1617325543402,2.486597,58720.0,58717.0,0.01943895]
[1617325543602,1.0,58717.0,58711.0,0.0388779]
[1617325543823,0.389597,58713.0,58709.0,0.03889664]
[1617325544025,2.486597,58710.0,58706.0,0.0389239]
[1617325544228,2.485597,58707.0,58700.0,0.03900235]
[1617325544425,0.645203,58703.0,58700.0,0.03900235]
[1617325544624,0.389597,58701.0,58694.0,0.03898306]
[1617325544825,0.389597,58697.0,58692.0,0.03900586]
[1617325545022,2.319597,58693.0,58692.0,0.03900586]
[1617325545420,2.483597,58693.0,58692.0,0.03900586]
[1617325545627,2.739211,58693.0,58691.0,0.03901785]
[1617325545822,2.739211,58693.0,58690.0,0.03902734]
[1617325545823,3.08078912,58692.0,58690.0,0.03902734]
[1617325546022,2.319597,58691.0,58690.0,0.03902734]
[1617325546446,3.184597,58691.0,58690.0,0.03902734]
[1617325546647,3.184597,58691.0,58689.0,0.03901742]
[1617325546847,3.43641312,58690.0,58675.0,0.00024]
[1617325547048,2.84641312,58690.0,58677.0,0.0066]
[1617325547248,2.84641312,58690.0,58689.0,0.03901038]
[1617325547448,3.25641312,58690.0,58689.0,0.03901038]
[1617325547647,2.985221,58690.0,58689.0,0.03901038]
[1617325548452,2.985221,58690.0,58679.0,0.1034433]
[1617325548646,2.985221,58690.0,58680.0,0.9921]
[1617325548851,0.54,58689.0,58680.0,0.9921]
[1617325549067,0.389597,58688.0,58680.0,0.9921]
[1617325549470,0.389597,58688.0,58681.0,0.005]
[1617325549671,0.127814,58692.0,58682.0,0.9921]
[1617325549867,0.27119212,58694.0,58684.0,0.005]
[1617325550067,0.569597,58693.0,58685.0,0.9921]
[1617325550669,0.825197,58693.0,58684.0,0.9971]
[1617325551268,0.825197,58693.0,58685.0,0.9921]
[1617325551470,0.335,58692.0,58684.0,0.005]
[1617325551702,0.389597,58691.0,58685.0,0.9921]
[1617325552300,0.2,58690.0,58685.0,0.9921]
[1617325552701,0.455599,58690.0,58685.0,0.9921]
[1617325552901,0.255599,58690.0,58685.0,0.9921]
[1617325553300,0.255599,58690.0,58688.0,0.08813957]
[1617325553503,0.255599,58690.0,58689.0,0.9921]
[1617325553700,0.255599,58690.0,58688.0,0.08813957]
[1617325554102,1.659597,58689.0,58688.0,0.08813957]
[1617325554342,2.108597,58689.0,58688.0,0.08813957]
[1617325554540,1.944597,58689.0,58688.0,0.08813957]
[1617325555339,0.674597,58689.0,58688.0,0.08813957]
[1617325555539,0.94578912,58689.0,58688.0,0.08813957]
[1617325556385,1.63578912,58689.0,58688.0,0.08813957]
[1617325556585,1.364597,58689.0,58688.0,0.08813957]
[1617325557386,0.674597,58689.0,58688.0,0.08813957]
[1617325557588,0.389597,58689.0,58688.0,0.08813957]
[1617325558387,1.409597,58689.0,58688.0,0.08813957]
[1617325558791,0.389597,58689.0,58688.0,0.08813957]
[1617325558990,0.79578912,58689.0,58688.0,0.08813957]
[1617325561296,0.524597,58689.0,58688.0,0.18052787]
[1617325563505,0.135,58689.0,58688.0,0.18052787]
[1617325563702,0.27119212,58699.0,58688.0,0.18052787]
[1617325563903,0.389597,58698.0,58689.0,0.0058]
[1617325564300,0.255581,58696.0,58689.0,0.09818533]
[1617325564507,0.389597,58695.0,58690.0,0.09237245]
[1617325564701,2.714597,58691.0,58688.0,0.08813957]
[1617325564923,1.439597,58689.0,58688.0,0.08813957]
[1617325565121,0.389597,58689.0,58688.0,0.08813957]
[1617325565321,1.099597,58689.0,58688.0,0.08813957]
[1617325565723,0.389597,58689.0,58688.0,0.18045198]
[1617325565927,0.649597,58689.0,58688.0,0.08813957]
[1617325566123,1.209597,58689.0,58688.0,0.18046252]
[1617325566324,0.389597,58689.0,58688.0,0.08313957]
[1617325566526,0.389597,58689.0,58688.0,0.17546168]
[1617325566925,0.389597,58689.0,58688.0,0.08313957]
[1617325567124,0.389597,58689.0,58688.0,0.17589642]
[1617325569154,0.389597,58689.0,58688.0,0.17617198]
[1617325569954,0.389597,58689.0,58688.0,1.16827198]
[1617325570180,0.255585,58695.0,58688.0,0.56576898]
[1617325570382,0.389597,58694.0,58689.0,0.09252667]
[1617325571229,0.389597,58694.0,58690.0,0.01]
[1617325571642,0.27119212,58693.0,58691.0,0.09248696]
[1617325571833,2.184597,58692.0,58691.0,0.09248696]
[1617325572035,2.440194,58692.0,58691.0,0.10248696]
[1617325572232,2.887644,58692.0,58691.0,0.10248696]
[1617325572430,2.88733962,58692.0,58691.0,0.10248696]
[1617325574031,2.88233962,58692.0,58691.0,0.10248696]
[1617325575031,1.22233962,58692.0,58691.0,0.10248696]
[1617325575432,0.96674262,58692.0,58691.0,0.10248696]
[1617325575631,0.51929262,58692.0,58691.0,0.10248696]
[1617325576634,0.79048474,58692.0,58691.0,0.10248696]
[1617325576833,1.09226474,58692.0,58691.0,0.10027644]
[1617325577633,0.82107262,58692.0,58691.0,0.10027644]
[1617325577832,1.09226474,58692.0,58691.0,0.10027644]
[1617325578257,0.82107262,58692.0,58691.0,0.10027644]
[1617325578459,0.51929262,58692.0,58691.0,0.10027644]
[1617325579057,1.00929262,58692.0,58691.0,0.10027644]
[1617325579260,0.51929262,58692.0,58691.0,0.10027644]
[1617325580460,0.51929262,58692.0,58691.0,0.10327644]
[1617325581478,0.79048474,58692.0,58691.0,0.10327644]
[1617325581679,0.51929262,58692.0,58691.0,0.10327644]
[1617325582479,0.51929262,58692.0,58691.0,0.10248696]
[1617325583913,0.51939262,58692.0,58691.0,0.10248696]
[1617325584918,0.12979562,58692.0,58691.0,0.10248696]
[1617325585113,0.0051,58692.0,58691.0,0.10279636]
[1617325586001,0.0051,58692.0,58691.0,1.13915556]
[1617325586193,0.0051,58692.0,58691.0,1.51875256]
[1617325586593,0.0051,58692.0,58691.0,1.68632587]
[1617325586828,0.0051,58692.0,58691.0,1.52775256]
[1617325587025,0.0051,58692.0,58691.0,1.68634778]
[1617325587428,0.0051,58692.0,58691.0,1.83134778]
[1617325587624,0.0051,58692.0,58691.0,1.68634778]
[1617325588426,0.1051,58692.0,58691.0,0.80634778]
[1617325588629,0.1051,58692.0,58691.0,0.41675078]
[1617325588826,0.0051,58692.0,58691.0,0.41675078]
[1617325589026,0.0051,58692.0,58691.0,0.25815556]
[1617325589226,0.0051,58692.0,58691.0,0.10179636]
[1617325589840,0.0051,58692.0,58691.0,0.09279636]
[1617325590042,0.1051,58692.0,58691.0,0.09279636]
[1617325590242,0.1051,58692.0,58691.0,0.10279636]
[1617325590439,0.1001,58692.0,58691.0,0.10279636]
[1617325591039,0.1001,58692.0,58691.0,0.10248696]
[1617325591838,0.1001,58692.0,58691.0,0.09248696]
[1617325592267,0.1001,58692.0,58689.0,0.09289627]
[1617325592865,0.1001,58692.0,58691.0,0.00110312]
[1617325593066,0.1001,58692.0,58691.0,0.09399702]
[1617325593266,0.0001,58692.0,58691.0,0.00110312]
[1617325593667,0.0001,58692.0,58691.0,0.09397976]
[1617325596689,0.335,58699.0,58691.0,0.09397976]
[1617325596891,0.944597,58698.0,58691.0,0.09397976]
[1617325597089,0.944597,58698.0,58692.0,0.09274932]
[1617325597517,0.944597,58698.0,58697.0,0.05867616]
[1617325597921,1.93,58697.0,58683.0,0.9921]
[1617325598118,0.389597,58696.0,58683.0,0.9921]
[1617325598320,1.93,58697.0,58686.0,0.006]
[1617325598321,0.389597,58695.0,58686.0,0.006]
[1617325598519,0.389597,58695.0,58691.0,0.1015669]
[1617325598719,0.1,58694.0,58691.0,0.1015669]
[1617325598918,0.384597,58693.0,58691.0,0.1015669]
[1617325599220,0.54,58692.0,58691.0,0.1015669]
[1617325599418,0.929597,58692.0,58691.0,0.1015669]
[1617325599619,1.029597,58692.0,58691.0,0.1015669]
[1617325600243,1.029597,58692.0,58691.0,0.00110312]
[1617325603770,0.929597,58692.0,58691.0,0.00110312]
[1617325603972,0.389597,58692.0,58691.0,0.00110312]
[1617325604571,0.489597,58692.0,58691.0,0.00110312]
[1617325604770,0.389597,58692.0,58691.0,0.00110312]
[1617325605998,0.389597,58692.0,58682.0,0.2564603]
[1617325606200,0.27172814,58699.0,58684.0,0.0072]
[1617325606399,0.884554,58698.0,58687.0,0.0028]
[1617325606801,1.140125,58698.0,58691.0,0.14184607]
[1617325607003,0.58,58697.0,58692.0,0.0056]
[1617325607199,0.389554,58696.0,58692.0,0.0056]
[1617325607401,0.23,58695.0,58692.0,0.0056]
[1617325607599,0.389554,58694.0,58692.0,0.0056]
[1617325607819,0.389554,58694.0,58691.0,0.14184607]
[1617325608222,0.389554,58694.0,58687.0,0.255558]
[1617325608618,0.389554,58694.0,58687.0,0.260158]
[1617325609419,0.23,58695.0,58687.0,0.260158]
[1617325609824,0.255565,58699.0,58687.0,0.260158]
[1617325610021,0.389554,58698.0,58689.0,0.0054]
[1617325610443,0.389554,58698.0,58684.0,0.25557]
[1617325611043,0.389554,58698.0,58686.0,0.0076]
[1617325611443,0.389554,58698.0,58683.0,0.0024]
[1617325611646,0.53,58697.0,58683.0,0.0024]
[1617325611842,0.389554,58696.0,58683.0,0.0024]
[1617325612044,0.255583,58695.0,58683.0,0.257978]
[1617325612243,0.389554,58694.0,58683.0,0.257978]
[1617325613098,0.389554,58694.0,58685.0,0.007]
[1617325613292,0.389554,58694.0,58686.0,0.08837067]
[1617325613692,0.19,58693.0,58686.0,0.08837067]
[1617325613892,0.389554,58692.0,58686.0,0.08837067]
[1617325614897,0.389554,58692.0,58691.0,0.00110312]
[1617325615095,0.564554,58692.0,58691.0,0.08945532]
[1617325616587,1.354554,58692.0,58691.0,0.08945532]
[1617325616795,0.564554,58692.0,58691.0,0.08945532]
[1617325617691,1.764554,58692.0,58691.0,0.08945532]
[1617325619649,2.494554,58692.0,58691.0,0.08945532]
[1617325620852,2.494554,58692.0,58691.0,0.0883522]
[1617325621258,2.494554,58692.0,58674.0,0.08845981]
[1617325621455,0.84172814,58691.0,58678.0,0.01]
[1617325621654,0.389554,58690.0,58678.0,0.01]
[1617325621853,0.389554,58690.0,58679.0,0.08846465]
[1617325622056,0.59,58689.0,58679.0,0.08846465]
[1617325622255,0.389554,58688.0,58679.0,0.08846465]
[1617325622455,0.255618,58686.0,58679.0,0.09306465]
[1617325622656,0.726144,58685.0,58679.0,0.09306465]
[1617325623055,0.726144,58685.0,58680.0,0.08844272]
[1617325624477,0.24,58684.0,58680.0,0.08844272]
[1617325624678,0.389554,58683.0,58680.0,0.08844272]
[1617325624882,0.389554,58683.0,58682.0,1.51413035]
[1617325625082,1.2,58692.0,58682.0,1.51413035]
[1617325625283,0.03434231,58694.0,58685.0,0.004]
[1617325625486,0.03434231,58694.0,58691.0,0.15366265]
[1617325625682,0.03434231,58694.0,58692.0,0.08841414]
[1617325625889,1.7425,58703.0,58694.0,0.006]
[1617325626107,0.389554,58699.0,58694.0,0.006]
[1617325626307,0.426045,58716.0,58695.0,0.08837831]
[1617325626308,0.55,58698.0,58695.0,0.08837831]
[1617325626508,1.437,58713.0,58697.0,1.934]
[1617325626705,1.437,58713.0,58703.0,1.59043352]
[1617325626902,1.437,58713.0,58703.0,2.25079993]
[1617325627103,0.9599,58713.0,58711.0,0.03905924]
[1617325627302,0.389554,58712.0,58711.0,0.03905924]
[1617325627505,0.389554,58712.0,58711.0,0.11965958]
[1617325627703,0.389554,58712.0,58711.0,0.20789239]
[1617325628505,0.389554,58712.0,58711.0,2.13789239]
[1617325628734,0.9346,58715.0,58711.0,2.70959704]
[1617325628929,0.9346,58715.0,58712.0,0.24105528]
[1617325629130,1.7242,58719.0,58712.0,0.24105528]
[1617325629330,0.59396701,58724.0,58716.0,0.0056]
[1617325629530,0.59396701,58724.0,58722.0,0.03908657]
[1617325629733,1.999554,58723.0,58722.0,0.12908657]
[1617325629933,1.999554,58723.0,58722.0,0.194]
[1617325630530,2.66389631,58723.0,58722.0,0.194]
[1617325630733,0.635,58722.0,58710.0,0.01]
[1617325630931,0.389554,58721.0,58710.0,0.01]
[1617325631147,0.389554,58721.0,58711.0,0.26109929]
[1617325631371,0.389554,58721.0,58713.0,0.0068]
[1617325631572,0.389554,58717.0,58713.0,0.0068]
[1617325631773,1.349554,58714.0,58711.0,0.15809929]
[1617325631972,1.209554,58712.0,58711.0,0.15809929]
[1617325632172,0.714554,58712.0,58711.0,0.15809929]
[1617325632374,1.679554,58712.0,58711.0,0.26209929]
[1617325632576,1.679554,58712.0,58711.0,0.09]
[1617325632973,0.389554,58712.0,58711.0,0.09]
[1617325633572,0.389554,58712.0,58711.0,0.194]
[1617325633998,1.33434231,58723.0,58711.0,0.194]
[1617325634206,0.834554,58722.0,58712.0,0.006]
[1617325634798,0.834554,58722.0,58713.0,0.103]
[1617325635000,0.425,58721.0,58713.0,0.103]
[1617325635200,0.389554,58720.0,58714.0,0.004]
[1617325635399,0.919554,58716.0,58715.0,0.104]
[1617325635798,0.589554,58716.0,58715.0,0.104]
[1617325635999,0.389554,58716.0,58715.0,0.104]
[1617325636398,0.979554,58716.0,58715.0,0.104]
[1617325636610,0.979554,58716.0,58714.0,0.103]
[1617325636811,1.714554,58715.0,58714.0,0.103]
[1617325637013,1.714554,58715.0,58710.0,0.17021202]
[1617325637213,1.744554,58711.0,58710.0,0.17021202]
[1617325637614,0.525,58710.0,58701.0,0.09062099]
[1617325637812,0.389554,58709.0,58706.0,0.103]
[1617325638211,0.135,58708.0,58706.0,0.103]
[1617325638410,0.389554,58707.0,58706.0,0.103]
[1617325639016,0.389554,58707.0,58701.0,0.09062099]
[1617325639433,0.389554,58707.0,58697.0,0.03889004]
[1617325640031,0.255546,58706.0,58696.0,0.0429041]
[1617325640235,0.389554,58705.0,58699.0,0.03896402]
[1617325640432,0.389554,58705.0,58697.0,0.12699994]
[1617325640830,0.389554,58705.0,58696.0,0.004]
[1617325640831,0.389554,58705.0,58700.0,0.08807612]
[1617325641030,1.019554,58701.0,58698.0,0.08808821]
[1617325641236,0.225,58700.0,58697.0,0.03898905]